Cogmind - Beta 15 @@@ ROGUE MODE // 2025.07.20 @ 14:46:59 Player: Cracklepappy Result: Destroyed by P-60 Hacker with Shock Rifle Performance ------------- Evolutions (4) 2000 Regions Visited (23) 4600 Robots Destroyed (582) 2910 Value Destroyed (23974) 23974 Prototype IDs (66) 1320 Alien Tech Used (0) 0 Bonus (16017) 16017 TOTAL SCORE: 50821 Bonus ------- Triggered High Security 500 High Alert Combat Kills 9708 Follower Combat Kills 3224 Entered Garrisons 1200 Used RIF Installer 3500 Aligned with FarCom 300 Friendly Fire -2415 Cogmind --------- Core Integrity 0/850 Matter 290/300 Energy 99/100 System Corruption 12% Temperature Cool (0) Movement Core (50) Location -6/Extension Parts ------- > --- POWER (1) -------- (None) > --- PROPULSION (2) --- (None) > --- UTILITY (6) ------ Experimental Core Analyzer > --- WEAPON (6) ------- Power Maul > --- INVENTORY (5) ---- Armored Huge Wheel Relay Coupler [NC] (51) Improved Remote Datajack Peak State ------------ > --- POWER ------------ Reinforced Fission Core > --- PROPULSION ------- Armored Wheel Centrium Wheel > --- UTILITY ---------- Experimental Cooling System High-capacity Storage Unit Experimental Core Analyzer Advanced Weapon Cycler Centrium Heavy Armor Plating > --- WEAPON ----------- Improved Heavy Machine Gun Improved Heavy Machine Gun Improved Heavy Machine Gun Improved Heavy Machine Gun Improved Heavy Machine Gun Hypervelocity Mass Driver > --- INVENTORY -------- Reinforced Antimatter Reactor Armored Huge Wheel Improved Cooling System Matter Compressor Advanced Recoil Stabilizer Improved Kinecellerator Experimental Propulsion Shielding Relay Coupler [NC] Relay Coupler [NC] System Purifier High-powered Tractor Beam Advanced Plasma Cannon Improved Heavy Machine Gun Improved Heavy Machine Gun Improved Heavy Machine Gun Improved Heavy Machine Gun Improved Remote Datajack Plasma Cutter Power Maul [Rating: 106] Favorites ----------- Power Reinforced Antimatter Reactor Engine Improved Ion Engine Power Core Reinforced Fission Core Reactor Reinforced Antimatter Reactor Propulsion Armored Wheel Wheel Armored Wheel Utility High-capacity Storage Unit Device Experimental Cooling System Storage High-capacity Storage Unit Processor Core Analyzer Hackware Relay Coupler [NC] Protection Centrium Heavy Armor Plating Weapon Enhanced Autogun Energy Gun EM Pulse Gun Energy Cannon Heavy Ion Cannon Ballistic Gun Enhanced Autogun Ballistic Cannon Hypervelocity Mass Driver Launcher Grenade Launcher Special Weapon Remote Datajack Impact Weapon Mace Slashing Weapon Blade Saw Special Melee Weapon Datajack Build | -11 -10 -10 -9 -9 -9 -8 -8 -8 -8 -8 -7 -7 -7 -7 -7 -7 -7 -7 -6 -6 -6 -6 -6 ------- Run | Yrd Mat Min Mat Min Exi Min Mat Gar Mat Gar Fac Was Fac Gar Fac Gar Fac Gar Fac Was Fac Gar Ext Slots Evolved 8 | . . . 2 . . . 2 . . . 2 . . . . . . . 2 . . . . Power . | . . . . . . . . . . . . . . . . . . . . . . . . Propulsion . | . . . . . . . . . . . . . . . . . . . . . . . . Utility 4 | . . . . . . . 1 . . . 1 . . . . . . . 2 . . . . Weapon 4 | . . . 2 . . . 1 . . . 1 . . . . . . . . . . . . Parts Attached 223 | 9 7 12 21 2 10 3 32 3 5 4 10 3 19 8 1 5 1 25 13 10 15 3 2 Power 12 | 1 1 3 2 . 1 . 2 . . . . 1 . . . . . 1 . . . . . Engine 8 | 1 1 3 2 . 1 . . . . . . . . . . . . . . . . . . Core 2 | . . . . . . . . . . . . 1 . . . . . 1 . . . . . Reactor 2 | . . . . . . . 2 . . . . . . . . . . . . . . . . Propulsion 34 | 4 1 5 6 . 1 3 3 . 2 . . . 2 1 . . . 4 . 2 . . . Treads . | . . . . . . . . . . . . . . . . . . . . . . . . Leg . | . . . . . . . . . . . . . . . . . . . . . . . . Wheel 34 | 4 1 5 6 . 1 3 3 . 2 . . . 2 1 . . . 4 . 2 . . . Hover . | . . . . . . . . . . . . . . . . . . . . . . . . Flight . | . . . . . . . . . . . . . . . . . . . . . . . . Utility 63 | 2 1 3 3 . 2 . 8 2 2 4 6 . 7 1 . 2 1 4 3 4 6 2 . Device 33 | 1 . 3 2 . . . 4 2 . 3 4 . 5 . . . 1 2 . 3 3 . . Storage 7 | 1 1 . 1 . 1 . 1 . . . . . . 1 . . . . . . . 1 . Processor 7 | . . . . . . . 1 . . . . . 1 . . 1 . . 1 1 1 1 . Hackware 11 | . . . . . . . . . 2 1 1 . 1 . . 1 . 2 1 . 2 . . Protection 5 | . . . . . 1 . 2 . . . 1 . . . . . . . 1 . . . . Artifact . | . . . . . . . . . . . . . . . . . . . . . . . . Weapon 114 | 2 4 1 10 2 6 . 19 1 1 . 4 2 10 6 1 3 . 16 10 4 9 1 2 Energy Gun 14 | . 3 1 1 . . . 5 . . . . . 1 1 . . . 2 . . . . . Energy Cannon 6 | . . . . . . . 1 . . . 1 1 . . 1 . . . 2 . . . . Ballistic Gun 72 | 2 . . 7 2 5 . 10 . . . 3 . 3 5 . 3 . 12 7 1 9 1 2 Ballistic Cannon 8 | . . . . . . . . . . . . 1 3 . . . . . 1 3 . . . Launcher 5 | . 1 . . . 1 . 2 . . . . . 1 . . . . . . . . . . Special Weapon 4 | . . . . . . . . 1 1 . . . 1 . . . . 1 . . . . . Impact Weapon 2 | . . . 1 . . . . . . . . . 1 . . . . . . . . . . Slashing Weapon 1 | . . . . . . . . . . . . . . . . . . 1 . . . . . Piercing Weapon . | . . . . . . . . . . . . . . . . . . . . . . . . Special Melee Weapon 2 | . . . 1 . . . 1 . . . . . . . . . . . . . . . . Unidentified Prototypes 5 | . . 1 . . . . 2 . . . . . . . . . . . . 1 1 . . Corrupted Parts 2 | . . 1 . . . . . . . 1 . . . . . . . . . . . . . System Corruption 5 | . . 2 . . . . . . . 3 . . . . . . . . . . . . . Parts Lost 53 | . 1 2 3 . 4 . 10 . . . 2 . 2 5 . . . 5 . . 1 . 18 Power 3 | . . 1 . . . . 1 . . . . . . . . . . . . . . . 1 Propulsion 6 | . . . 2 . 2 . . . . . . . . . . . . . . . . . 2 Utility 12 | . . 1 . . 1 . . . . . . . 2 . . . . 1 . . 1 . 6 Weapon 32 | . 1 . 1 . 1 . 9 . . . 2 . . 5 . . . 4 . . . . 9 Highest Loss Streak 18 | . 1 1 1 . 4 . 9 . . . 2 . 1 4 . . . 1 . . 1 . 18 To Critical Strikes 3 | . . . . . 3 . . . . . . . . . . . . . . . . . . Average Backups 17 | 5 14 14 13 14 15 19 18 17 17 17 17 17 17 17 17 17 18 17 19 18 17 18 18 Power 1 | . 1 1 1 1 1 1 1 1 1 1 . 1 1 1 1 1 1 1 1 1 1 1 . Propulsion 1 | 2 4 2 1 1 . . . 1 1 1 1 1 1 1 1 1 1 1 1 2 1 1 1 Utility 8 | . 3 3 3 2 3 9 9 9 9 9 11 11 9 9 10 11 11 11 11 10 9 8 8 Weapon 4 | 1 5 5 6 8 9 8 5 5 4 3 2 3 4 4 3 2 2 1 3 3 3 6 5 Tool/Special . | . . . . . . . . . . . . . . . . . . . . . . . . Unused Backups 69 | 4 4 2 10 1 9 . 8 2 . . 6 3 1 2 . 3 1 5 2 . . 1 5 Power 9 | . 1 . 1 . 3 . 2 . . . . 1 . . . . . 1 . . . . . Propulsion 8 | 4 . 1 . . . . 2 . . . . . . . . . . . 1 . . . . Utility 36 | . 1 1 3 1 5 . 4 1 . . 5 2 1 1 . 2 1 2 1 . . 1 4 Weapon 15 | . 2 . 6 . 1 . . 1 . . 1 . . 1 . 1 . 1 . . . . 1 Tool/Special 1 | . . . . . . . . . . . . . . . . . . 1 . . . . . Average Slot Usage (%) 94 | . 99 99 98 100 77 98 93 90 98 100 99 100 98 90 92 92 92 94 90 95 99 93 89 Engine 2 | . 14 13 10 11 11 11 4 . . . . . . . . . . . . . . . . Core 1 | . . . . . . . . . . . . 1 . . . . . 2 6 6 6 6 5 Reactor 3 | . . . . . . . 4 9 9 9 6 5 7 6 6 7 7 4 . . . . . Wheel 14 | . 28 28 21 22 18 20 13 9 16 18 15 15 13 7 7 7 7 10 10 9 13 13 12 Device 13 | . 14 13 10 11 7 . 8 18 11 17 18 15 16 14 15 13 7 6 5 14 23 13 12 Storage 8 | . 14 14 11 11 11 11 9 9 9 9 7 7 7 7 7 7 7 7 6 6 6 6 5 Processor 4 | . . . . . . . . . . . . . 5 7 7 8 15 15 13 11 6 6 6 Protection 1 | . . . . . 2 11 7 . . . 2 2 . . . . . . 6 . . 5 5 Energy Gun 1 | . 22 14 1 . . . 4 . . . . . . 4 3 1 . 1 . . . . . Ballistic Gun 35 | . 5 14 40 44 18 44 38 43 44 42 43 31 36 26 29 42 45 40 36 27 28 38 37 Ballistic Cannon 1 | . . . . . . . . . . . . . 6 5 3 . . 1 1 3 10 . . Peak Build Rating 106 | 7 8 16 22 22 37 38 61 57 55 53 64 66 72 74 75 76 70 72 80 74 95 102 106 Average Rating 56 | 6 7 9 20 21 19 37 47 55 51 50 61 62 66 70 74 72 69 58 69 70 84 99 99 On Entrance 51 | . 7 8 11 22 22 37 38 57 55 51 52 59 66 70 74 75 70 70 48 74 73 90 100 Naked Turns . | . . . . . . . . . . . . . . . . . . . . . . . . Heaviest Build 132 | 12 28 28 41 41 66 66 80 80 68 68 85 91 98 98 105 105 93 100 110 109 132 110 113 Greatest Support 32 | 26 20 26 32 20 20 22 28 28 28 24 24 24 28 28 28 28 28 28 28 28 28 28 28 Greatest Overweight (x) 9 | . 1 1 3 2 5 5 3 2 5 2 3 3 3 3 3 3 3 6 4 4 9 3 4 Average Overweight (x) 2 | . . 1 1 2 2 2 2 2 2 2 2 3 3 2 3 3 3 2 3 3 3 3 2 Largest Inventory Capacity 20 | 8 15 15 15 15 20 20 20 20 20 20 20 20 20 20 20 20 20 20 20 20 20 20 20 Average Capacity 19 | 7 14 15 15 15 19 20 20 20 20 20 20 20 20 20 20 20 20 20 20 20 20 20 19 Most Carried 20 | 8 15 15 15 15 20 20 20 20 20 20 20 20 20 20 20 20 20 20 20 20 20 20 20 Average Carried 18 | 5 14 14 14 15 16 20 19 19 19 19 19 19 19 19 19 19 20 19 19 19 19 19 19 Final Capacity 20 | 8 15 15 15 15 20 20 20 20 20 20 20 20 20 20 20 20 20 20 20 20 20 20 5 Final Carried 20 | 8 15 15 15 15 20 20 20 20 20 20 20 20 20 20 20 20 20 20 20 20 20 20 4 Class Distribution -------------------- 32% | Scavenger-Executioner 15% | Gunner 10% | Executioner 9% | Commander-Executioner 9% | Tank 8% | Mutant 5% | Commander-Gunner 4% | Scavenger-Tank Dominant Class ---------------- Mutant | -10/Materials Scavenger-Mutant | -10/Mines Tank | -9/Materials Tank | -9/Mines Mutant | -9/Exiles Scavenger-Tank | -8/Mines Scavenger-Tank | -8/Materials Gunner | -8/Garrison Commander-Gunner | -8/Materials Gunner | -8/Garrison Executioner | -7/Factory Scavenger-Executioner | -7/Waste Executioner | -7/Factory Scavenger-Executioner | -7/Garrison Scavenger-Executioner | -7/Factory Commander-Executioner | -7/Garrison Commander-Executioner | -7/Factory Scavenger-Executioner | -7/Garrison Scavenger-Executioner | -6/Factory Scavenger-Executioner | -6/Waste Scavenger-Executioner | -6/Factory Scavenger-Executioner | -6/Garrison Commander-Executioner | -6/Extension Resources | -11 -10 -10 -9 -9 -9 -8 -8 -8 -8 -8 -7 -7 -7 -7 -7 -7 -7 -7 -6 -6 -6 -6 -6 ----------- Run | Yrd Mat Min Mat Min Exi Min Mat Gar Mat Gar Fac Was Fac Gar Fac Gar Fac Gar Fac Was Fac Gar Ext Matter Collected 30154 | 354 221 238 1582 153 1590 253 2275 1075 574 1899 1577 783 2803 921 . 1158 86 2600 545 1062 2138 2506 3761 Remotely 4350 | . . . . . . . . . . . 41 . 553 48 . . 86 837 . 220 638 262 1665 Salvage Created 29143 | 236 472 376 1968 103 652 216 2703 1007 859 1590 1141 1202 2223 724 . 708 75 2468 511 1720 2017 2449 3723 Parts 1350 | 22 30 31 114 4 83 10 123 51 57 98 60 24 112 22 . 30 4 120 30 24 73 96 132 Haulers Intercepted 20 | . 2 . 6 . . . 4 . 2 . . . 2 . . . . . . . 4 . . Recyclers Shooed 11 | . . 1 4 . . 2 1 . . . . . 2 . . . . . 1 . . . . Parts Field Recycled . | . . . . . . . . . . . . . . . . . . . . . . . . Retrieved Matter . | . . . . . . . . . . . . . . . . . . . . . . . . Parts Self-Destructed . | . . . . . . . . . . . . . . . . . . . . . . . . Prevented . | . . . . . . . . . . . . . . . . . . . . . . . . Kills | -11 -10 -10 -9 -9 -9 -8 -8 -8 -8 -8 -7 -7 -7 -7 -7 -7 -7 -7 -6 -6 -6 -6 -6 ------- Run | Yrd Mat Min Mat Min Exi Min Mat Gar Mat Gar Fac Was Fac Gar Fac Gar Fac Gar Fac Was Fac Gar Ext Combat Hostiles Destroyed 447 | . 9 10 29 4 5 2 27 22 12 41 20 5 34 19 . 16 1 41 8 6 25 46 65 Melee 1 | . . . . . . . . . . . . . . . . . . . . . . . 1 Guns 400 | . 4 9 29 4 1 2 27 22 12 41 20 2 27 14 . 15 1 35 6 4 19 46 60 Cannons 32 | . . . . . . . . . . . . 3 7 5 . 1 . 6 2 . 6 . 2 AOE 11 | . 5 . . . 4 . . . . . . . . . . . . . . . . . 2 Classes Destroyed 26 | 3 4 1 1 1 3 1 1 3 . 1 1 1 . . . . . 1 . . 1 3 . Worker 26 | 1 1 1 6 . . 1 5 . 1 . 3 . 6 . . . . . 1 . . . . Builder 15 | . . 1 1 . . 2 3 . 4 . 1 . 1 . . . . . 1 . 1 . . Tunneler 13 | 5 . . 1 . . 2 2 . . . 1 . 2 . . . . . . . . . . Hauler 20 | . 2 . 6 . . . 4 . 2 . . . 2 . . . . . . . 4 . . Recycler 27 | 1 1 1 5 . . . 7 . 1 . 1 . 7 . . . . . 1 . 2 . . Mechanic 3 | . . . . . . . . . . . . . . . . . . 1 . . . . 2 Operator 1 | . . . . . . . 1 . . . . . . . . . . . . . . . . Turret 1 | . . . . . 1 . . . . . . . . . . . . . . . . . . Watcher 19 | . 3 . 5 . . . 3 . . . 2 . 2 . . . . 1 1 . 1 . 1 Swarmer 93 | . 6 6 11 3 . . . 2 1 15 4 . 1 3 . 5 . 6 4 . 8 18 . Cutter 4 | . . . . . . . . 2 . . . . . . . 1 . 1 . . . . . Saboteur 2 | . . . . . . . . . . . . . . . . . . . . . . 1 1 Grunt 165 | . 3 4 8 . . 1 21 10 4 11 7 . 16 6 . 6 . 20 . . 11 11 26 Brawler 10 | . . . . 1 . . 1 1 . . 1 . 1 . . . . . . . 1 1 3 Duelist 13 | . . . . . . 1 . . . . 1 . 3 . . 1 . . . . 1 1 5 Protector 4 | . . . . . . . . . . . . . . . . . . . . . 1 . 3 Sentry 61 | . . . 10 . . . 4 3 7 8 2 . 3 2 . . 1 3 2 . 1 6 9 Demolisher 8 | . . . . . . . . . . . 2 . . . . . . 1 . . . . 5 Specialist 10 | . . . . . . . . . . 1 . . . . . . . 4 . . . . 5 Hunter 11 | . . . . . . . . 3 . . . . . . . 1 . 1 2 . 1 2 1 Programmer 37 | . . . . . . . . 1 . 6 3 . 10 1 . 2 . 5 . . . 3 6 Behemoth 2 | . . . . . . . . . . . . . . . . . . . . . . 1 1 Compactor 11 | . . . . . . . . . . . . 5 . . . . . . . 6 . . . Striker 2 | . . . . . . . . . . . . . . . . . . . . . . 2 . Zionite 8 | . . . . . 8 . . . . . . . . . . . . . . . . . . Assembled 11 | . . . . . 4 . . . . . . . . 7 . . . . . . . . . Thug 5 | . . . . . . . . . . . . . . . . . . . . . 2 . 3 Butcher 4 | . . . . . . . . . . . . . . . . . . . . . . . 4 Martyr 2 | . . . . . . . . . . . . . . . . . . . . 2 . . . Infiltrator 1 | . . . . . . . . . . . . . . . . . . . . . . 1 . Best Kill Streak 17 | 3 4 6 4 3 5 3 10 4 7 6 7 1 9 4 . 4 1 5 6 3 6 7 17 Combat Bots Only 16 | . 3 5 3 3 4 2 4 4 4 6 5 1 5 4 . 4 1 5 4 3 6 7 16 Max Kills in Single Turn 3 | 1 2 1 2 1 1 1 2 1 2 2 2 1 2 2 . 3 1 2 3 1 2 3 3 Gunslinging 2 | . . . 1 . . . 1 . 1 1 1 . 1 . . . . 1 1 . 1 2 1 Exploded 2 | . 2 . . . 1 . . . . . . . . . . . . . . . . . 2 Melee 1 | . . . . . . . . . . . . . . . . . . . . . . . 1 Uniques/NPCs Destroyed 5 | . . . . . 4 . 1 . . . . . . . . . . . . . . . . 8R-AWN (-9/Exiles) EX-BIN (-9/Exiles) EX-DEC (-9/Exiles) EX-HEX (-9/Exiles) 7R-MNS (-8/Materials) Combat | -11 -10 -10 -9 -9 -9 -8 -8 -8 -8 -8 -7 -7 -7 -7 -7 -7 -7 -7 -6 -6 -6 -6 -6 -------- Run | Yrd Mat Min Mat Min Exi Min Mat Gar Mat Gar Fac Was Fac Gar Fac Gar Fac Gar Fac Was Fac Gar Ext Hostile Shots Fired 1799 | . 19 45 119 17 45 11 149 48 13 89 74 . 145 119 . 31 27 177 74 . 66 149 382 Missed 536 | . 6 14 39 6 4 4 34 11 6 17 27 . 47 32 . 9 12 48 23 . 21 42 134 Hits 1263 | . 13 31 80 11 41 7 115 37 7 72 47 . 98 87 . 22 15 129 51 . 45 107 248 Melee 18 | . . . . 3 . . . 1 . . . . 1 4 . . . 3 . . . 5 1 Projectile 1245 | . 13 31 80 8 41 7 115 36 7 72 47 . 97 83 . 22 15 126 51 . 45 102 247 AOE 15 | . . . . . . . . 2 . . 3 . . . . 2 . . . . . . 8 Critical Strikes 56 | . . 1 1 1 21 . 5 2 1 . 1 . 3 1 . . . 3 . . 1 3 12 Actively Blocked 1 | . . . . . . . 1 . . . . . . . . . . . . . . . . Part Disruptions 3 | . . . . . . . . . . . . . 1 . . . . . . . . . 2 Damage Taken 18571 | . 212 354 856 112 577 101 2289 593 120 943 668 . 1327 896 . 461 122 1656 761 . 773 1744 4006 Core 2080 | . 40 41 103 13 127 16 255 52 13 76 29 . 151 116 . 24 23 140 36 . 31 63 731 Absorbed by Shields 1104 | . . . 195 44 94 . 92 14 . . . . . . . . . 173 . . . 198 294 Redirected to Shielding 126 | . . . . . . 10 45 . . . 71 . . . . . . . . . . . . Regen/Repaired (Parts) 4772 | . . . 166 . . . 39 . 136 648 281 . 184 . 399 159 31 294 35 162 204 1426 608 Core Remaining (%) 52 | 100 . 67 . . . 35 . . . 28 . . . . . . . 31 . . . . . Volleys Fired 1536 | 17 30 31 95 9 123 21 102 58 25 91 55 97 98 77 . 62 3 130 36 57 51 122 146 Largest 6 | 2 2 2 4 4 4 4 5 5 5 5 6 4 6 6 . 6 6 6 6 6 6 6 6 Hottest 319 | 40 80 70 143 92 92 99 319 125 125 125 150 100 206 265 . 241 181 226 182 214 221 90 131 Shots Fired 5597 | 34 58 62 379 36 166 58 476 229 118 415 277 182 445 233 . 187 18 494 141 154 280 499 656 Gun 4940 | 34 56 62 379 36 154 58 474 229 116 415 268 113 339 129 . 153 18 425 114 96 208 460 604 Cannon 441 | . . . . . . . 2 . . . . 63 103 85 . 8 . 27 24 49 70 . 10 Launcher 14 | . 2 . . . 12 . . . . . . . . . . . . . . . . . . Special 202 | . . . . . . . . . 2 . 9 6 3 19 . 26 . 42 3 9 2 39 42 Kinetic 4985 | 34 8 31 347 36 154 58 423 229 116 415 268 113 425 148 . 147 18 440 125 98 278 460 614 Thermal 463 | . . 31 32 . . . 53 . . . . 63 17 85 . 38 . 52 13 47 . 32 . Explosive 14 | . 2 . . . 12 . . . . . . . . . . . . . . . . . . Electromagnetic 48 | . 48 . . . . . . . . . . . . . . . . . . . . . . Robot Hit Streak 30 | 7 7 17 13 7 11 4 10 12 10 17 15 19 7 26 . 16 4 21 12 30 12 21 17 Robot Miss Streak 26 | 3 4 2 7 3 4 5 5 10 5 12 4 3 18 26 . 8 3 11 5 3 8 11 6 Penetration Max 2 | . . . . . 1 1 2 . . . . . . . . . . 1 . . 2 . 1 Secondary Targets 99 | . 2 1 6 1 . . 4 2 3 11 7 1 2 . . 2 . 5 2 . 4 22 24 Max Gunslinging Chain 2 | . 1 1 1 1 . . 1 1 2 1 1 1 1 . . 1 . 1 2 . 1 2 2 Shots Hit Robots 2902 | 22 30 46 218 17 99 31 245 102 53 191 162 144 220 104 . 79 7 230 52 114 122 284 330 Core Hits 1286 | 12 19 20 80 5 40 12 107 41 28 63 58 23 155 59 . 46 3 108 27 23 70 115 172 Critical Kills 46 | . . . 1 . 6 . 9 1 . 2 . . . . . 1 . 4 1 2 16 . 3 Critical Parts Destroyed 63 | . . . . . 17 2 11 . . 1 2 . 1 . . . . 7 . 1 12 3 6 Critical Strikes 134 | . 1 5 3 1 23 2 26 1 . 3 2 . 3 3 . 1 . 12 2 4 28 5 9 Burn 10 | . . 5 2 . . . 3 . . . . . . . . . . . . . . . . Meltdown 2 | . . . . . . . . . . . . . . . . . . . . 2 . . . Destroy 109 | . . . 1 1 23 2 23 1 . 3 2 . . . . 1 . 11 1 2 28 1 9 Blast 3 | . . . . . . . . . . . . . 2 . . . . . 1 . . . . Corrupt 1 | . 1 . . . . . . . . . . . . . . . . . . . . . . Smash 3 | . . . . . . . . . . . . . 1 . . . . . . . . 2 . Sever 6 | . . . . . . . . . . . . . . 3 . . . 1 . . . 2 . Melee Attacks 92 | . . . 5 . 9 . 1 8 3 29 1 3 6 4 . . . 1 4 4 . 12 2 Impact 84 | . . . 5 . 2 . . 8 3 29 1 3 6 4 . . . 1 4 4 . 12 2 Slashing . | . . . . . . . . . . . . . . . . . . . . . . . . Piercing . | . . . . . . . . . . . . . . . . . . . . . . . . Sneak Attacks 17 | . . . 1 . 6 . 1 . . . . . 5 . . . . . . 4 . . . Combat Hostiles . | . . . . . . . . . . . . . . . . . . . . . . . . Follow-up Attacks . | . . . . . . . . . . . . . . . . . . . . . . . . Damage Inflicted 57871 | 222 674 607 3275 277 1681 525 3611 1683 1107 3486 3157 3016 4735 1991 . 1624 153 4406 859 2823 2519 6597 8843 Guns 48695 | 222 435 607 3236 277 1459 525 3611 1683 1107 3486 3097 1669 3234 1035 . 1358 153 3759 700 1236 2079 5637 8090 Cannons 5409 | . . . . . . . . . . . . 1347 953 746 . 43 . 249 159 1280 440 . 192 Explosions 1082 | . 239 . . . 222 . . . . . 60 . . . . . . . . . . . 561 Melee 1501 | . . . 39 . . . . . . . . . 548 . . . . . . 307 . 607 . Ramming . | . . . . . . . . . . . . . . . . . . . . . . . . Kinetic 49228 | 222 54 345 2909 277 1459 525 3299 1683 1107 3486 3097 1669 4085 1272 . 1271 153 3782 859 1236 2519 5637 8282 Thermal 6323 | . 83 262 327 . . . 312 . . . . 1347 102 719 . 353 . 624 . 1280 . 353 561 Explosive 438 | . 156 . . . 222 . . . . . 60 . . . . . . . . . . . . Electromagnetic 381 | . 381 . . . . . . . . . . . . . . . . . . . . . . Impact 1501 | . . . 39 . . . . . . . . . 548 . . . . . . 307 . 607 . Slashing . | . . . . . . . . . . . . . . . . . . . . . . . . Piercing . | . . . . . . . . . . . . . . . . . . . . . . . . Highest Corruption 12 | . 1 3 1 1 1 1 . 1 1 7 3 3 4 4 4 4 4 7 . . 1 2 12 Average Corruption 2 | . 1 1 1 1 1 1 . 1 1 3 2 3 3 3 4 4 4 6 . . 1 1 2 Corruption Purged 4 | . . . . . . . . . . . . . 4 . . . . . . . . . . Corruption Blocked . | . . . . . . . . . . . . . . . . . . . . . . . . Effects 362 | . . 3 12 9 16 3 . 1 8 44 12 17 34 16 10 40 6 75 . . 12 24 20 Message Errors 96 | . . 1 5 2 4 1 . . 4 8 6 7 8 6 2 11 2 17 . . 4 5 3 Matter Fused 75 | . . 1 1 2 3 . . 1 1 11 . 3 9 2 2 9 2 17 . . . 7 4 Heat Flow Errors 46 | . . 1 1 1 2 . . . . 3 2 2 3 2 1 4 1 12 . . 2 4 5 Energy Discharges 46 | . . . 2 1 4 1 . . 2 8 1 . 3 . . 7 . 8 . . 3 4 2 Parts Rejected 4 | . . . . . . 1 . . . . . 1 . . . . . . . . . . 2 Parts Fused 8 | . . . 2 . 2 . . . . 2 . . 1 1 . . . . . . . . . Data Loss (minor) 41 | . . . 1 1 1 . . . . 5 2 1 4 1 4 9 . 9 . . 1 1 1 Data Loss (major) 13 | . . . . . . . . . . 3 . 1 3 1 . . 1 3 . . 1 . . Misfires 12 | . . . . . . . . . 1 1 1 1 2 1 . . . 4 . . . 1 . Alerts 9 | . . . . 2 . . . . . 2 . 1 1 2 1 . . . . . . . . Misdirections 1 | . . . . . . . . . . . . . . . . . . . . . . . 1 Weapon Failures 11 | . . . . . . . . . . 1 . . . . . . . 5 . . 1 2 2 Overload Shots . | . . . . . . . . . . . . . . . . . . . . . . . . Overflow Damage 679 | . 11 . 9 . . . . . . . . . 236 . . . . . . 115 2 306 . Projectiles 6 | . . . . . . . . . . . . . 4 . . . . . . . 2 . . Explosions 11 | . 11 . . . . . . . . . . . . . . . . . . . . . . Melee 662 | . . . 9 . . . . . . . . . 232 . . . . . . 115 . 306 . Knockbacks 32 | . . . 1 . . . . . . . . . 13 6 . . . 3 2 2 3 . 2 Impact 4 | . . . 1 . . . . . . . . . 1 . . . . . . 2 . . . Kinetic 27 | . . . . . . . . . . . . . 11 6 . . . 3 2 . 3 . 2 Secondary 1 | . . . . . . . . . . . . . 1 . . . . . . . . . . Self-Inflicted Damage 38 | . 38 . . . . . . . . . . . . . . . . . . . . . . Shots 1 | . 1 . . . . . . . . . . . . . . . . . . . . . . Rammed . | . . . . . . . . . . . . . . . . . . . . . . . . Targets Rammed . | . . . . . . . . . . . . . . . . . . . . . . . . Kicked . | . . . . . . . . . . . . . . . . . . . . . . . . Crushed . | . . . . . . . . . . . . . . . . . . . . . . . . Highest Temperature 417 | . 139 160 269 243 325 239 374 246 205 333 375 174 417 340 169 280 99 330 52 291 326 222 229 Average Temperature 76 | . 44 87 34 53 207 79 63 73 80 76 116 36 98 113 126 96 31 66 22 110 74 42 47 Received Heat Transfer 4859 | . 87 126 293 8 . 63 1020 153 72 171 183 . 465 195 . 36 42 418 6 . 222 208 1091 Effects 11 | . . . 1 . 2 . 3 . . . . . 1 1 . 1 . 2 . . . . . Shutdowns 2 | . . . . . . . . . . . . . 1 . . . . 1 . . . . . Energy Bleed 3 | . . . . . 1 . . . . . . . . 1 . 1 . . . . . . . Interference 5 | . . . 1 . 1 . 3 . . . . . . . . . . . . . . . . Short Circuit 1 | . . . . . . . . . . . . . . . . . . 1 . . . . . Siege Activations . | . . . . . . . . . . . . . . . . . . . . . . . . Martial Activations . | . . . . . . . . . . . . . . . . . . . . . . . . Shielding Activations . | . . . . . . . . . . . . . . . . . . . . . . . . Robots Disrupted . | . . . . . . . . . . . . . . . . . . . . . . . . Combat Hostiles . | . . . . . . . . . . . . . . . . . . . . . . . . Robots Corrupted 8 | . 1 . . . . . . . . . . . . . . . . . . 2 . 5 . Combat Hostiles 1 | . . . . . . . . . . . . . . . . . . . . . . 1 . Parts Fried 21 | . 3 . . . . . . . . . . . 6 . . . . . . 3 . 8 1 Impact Corruptions 18 | . . . 1 . . . . . . . . . 6 . . . . . . 4 . 7 . Robots Melted 3 | . . 1 . . . . . . . . . . . . . . . . . 2 . . . Combat Hostiles 3 | . . 1 . . . . . . . . . . . . . . . . . 2 . . . Parts Melted 22 | . . 3 5 1 . . 2 . . . . . . 3 . . . 2 . 3 . 1 2 Heat Transferred 12446 | . 50 1147 1110 . . . 851 . . . . 1850 161 1572 . 1002 . 1665 . 1554 . 1184 300 Parts Sabotaged 9 | . . . . . . . . . . . . . . 8 . . . . . . . 1 . Parts Stolen . | . . . . . . . . . . . . . . . . . . . . . . . . Parts Stripped . | . . . . . . . . . . . . . . . . . . . . . . . . Power Chain Reactions 1 | . 1 . . . . . . . . . . . . . . . . . . . . . . Alert | -11 -10 -10 -9 -9 -9 -8 -8 -8 -8 -8 -7 -7 -7 -7 -7 -7 -7 -7 -6 -6 -6 -6 -6 ------- Run | Yrd Mat Min Mat Min Exi Min Mat Gar Mat Gar Fac Was Fac Gar Fac Gar Fac Gar Fac Was Fac Gar Ext Maximum Alert Level 5 | . . . 1 . . . 2 3 3 5 4 2 2 3 2 5 4 5 4 2 4 5 5 Low Security (%) 29 | 100 100 100 62 100 . 100 39 19 7 . . 43 51 . . . . . . 57 37 . . Level 1 17 | . . . 37 . . . 50 18 22 12 . 51 41 5 . 2 . . . 39 6 . . Level 2 14 | . . . . . . . 9 43 59 18 . 5 6 61 100 36 . . . 3 22 . . Level 3 9 | . . . . . . . . 18 10 22 71 . . 33 . 16 66 4 . . 9 4 . Level 4 12 | . . . . . . . . . . 30 28 . . . . 17 33 40 100 . 23 21 . Level 5 14 | . . . . . . . . . . 15 . . . . . 27 . 54 . . . 73 55 High Security 1 | . . . . . . . . . . . . . . . . . . . . . . . 44 Max Security . | . . . . . . . . . . . . . . . . . . . . . . . . Peak Influence 4637 | 5 143 125 338 194 . 47 447 1052 777 2085 1217 411 520 1062 557 1898 1147 2368 1285 412 1430 3269 4637 Initial 1715 | . . 8 . 130 . . . 59 512 232 1094 411 54 361 557 276 996 774 1243 412 . 980 1715 Average 772 | . 46 42 142 91 . 7 205 534 511 1072 1053 232 171 676 481 1111 1060 1682 1218 176 563 2093 2875 Influence Increases 21297 | 35 324 255 1028 245 . 109 947 1033 699 1893 614 3 1201 751 28 1642 241 1824 252 3 1934 2389 3847 Destroy 0b10 Robot/C 10520 | . 180 200 580 160 . 40 520 580 340 820 400 . 680 240 . 680 100 1040 160 . 800 1100 1900 Destroy 0b10 Robot/NC 760 | 35 35 15 120 . . 25 125 . 50 5 40 . 100 10 . 10 5 25 20 . 60 35 45 Destroy Leader 1476 | . 50 40 192 30 . 10 134 20 108 30 84 . 178 10 . 60 30 80 42 . 164 50 164 Allied During Kill 3584 | . . . . 25 . . . 78 139 44 26 . . . . 336 89 129 . . 703 525 1490 Successful Hack 432 | . 39 . 59 . . . 23 14 13 16 . . 73 14 28 . . 44 14 . 30 . 65 Select Force Hacks 30 | . . . . . . . 30 . . . . . . . . . . . . . . . . Disable Machine 660 | . 15 . 45 30 . 30 60 15 45 . 45 . 60 15 . 45 15 . . . 150 15 75 Anti-Garrison Action 2900 | . . . . . . . . 300 . 800 . . . 400 . 500 . 400 . . . 500 . Destroy Structure 530 | . 5 . 17 . . 4 25 26 4 58 19 3 50 62 . 11 2 16 16 3 27 149 33 Partial Spotted 30 | . . . 15 . . . . . . 15 . . . . . . . . . . . . . Lose Combat Pursuer 375 | . . . . . . . 30 . . 105 . . 60 . . . . 90 . . . 15 75 Influence Decreases 16723 | 35 302 277 692 581 . 109 856 72 1394 165 1523 1101 762 206 695 139 1032 563 1441 1182 533 521 2542 Entered New Map 8579 | . . 14 . 206 . . . 32 540 125 991 765 24 156 505 119 902 333 1125 767 . 421 1554 Time Decay 5536 | 35 292 235 513 335 . 109 525 . 534 . 422 326 558 . 190 . 130 . 286 415 353 . 278 Lost Part 488 | . 10 18 30 . . . 100 . . . 20 . 20 50 . . . 50 . . 10 . 180 Lost Ally 1290 | . . 10 . 40 . . . 40 20 40 90 10 10 . . 20 . 180 30 . 170 100 530 Purge Threat 830 | . . . 149 . . . 231 . 300 . . . 150 . . . . . . . . . . Squads Dispatched 60 | . 1 . . . . . 10 . 2 . 5 . 14 . . . . . 2 . 8 . 18 Investigation 12 | . 1 . . . . . 4 . . . . . 4 . . . . . 1 . 2 . . Extermination 12 | . . . . . . . . . . . 2 . 7 . . . . . 1 . 2 . . Reinforcement 10 | . . . . . . . 3 . 1 . 1 . 2 . . . . . . . 2 . 1 Assault 20 | . . . . . . . . . . . 2 . . . . . . . . . 1 . 17 Garrison 6 | . . . . . . . 3 . 1 . . . 1 . . . . . . . 1 . . Intercept . | . . . . . . . . . . . . . . . . . . . . . . . . Searches Triggered . | . . . . . . . . . . . . . . . . . . . . . . . . Construction Impeded 1 | . . . . . . . . . . . . . . . . . . . . . . . 1 Haulers Reinforced 2 | . . . . . . . . . . . . . . . . . . . . . 2 . . Active Scanning Responses . | . . . . . . . . . . . . . . . . . . . . . . . . Cargo Convoy Interrupts 1 | . . . . . . . . . . . . . 1 . . . . . . . . . . Stealth | -11 -10 -10 -9 -9 -9 -8 -8 -8 -8 -8 -7 -7 -7 -7 -7 -7 -7 -7 -6 -6 -6 -6 -6 --------- Run | Yrd Mat Min Mat Min Exi Min Mat Gar Mat Gar Fac Was Fac Gar Fac Gar Fac Gar Fac Was Fac Gar Ext Distress Signals 19 | . . . 1 . . . 5 . 1 . 2 . . . . . . 1 1 . 2 . 6 Communications Jammed . | . . . . . . . . . . . . . . . . . . . . . . . . Distress Signals . | . . . . . . . . . . . . . . . . . . . . . . . . Times Spotted 652 | . 13 10 43 8 14 3 39 26 20 44 29 5 41 31 . 29 6 48 11 5 42 60 125 Peak Tracking Total 24 | . 3 4 3 3 12 3 6 5 5 7 5 3 5 6 . 4 3 10 4 3 7 8 24 Tactical Retreats 20 | . . . . . 4 . 2 . . 4 . . 2 2 . . . 4 . . . 1 1 Traps | -11 -10 -10 -9 -9 -9 -8 -8 -8 -8 -8 -7 -7 -7 -7 -7 -7 -7 -7 -6 -6 -6 -6 -6 ------- Run | Yrd Mat Min Mat Min Exi Min Mat Gar Mat Gar Fac Was Fac Gar Fac Gar Fac Gar Fac Was Fac Gar Ext Traps Triggered 63 | . 2 . 4 . . . 1 7 . 9 5 . 8 2 1 8 . 4 2 . 1 8 1 Indirectly . | . . . . . . . . . . . . . . . . . . . . . . . . Trap Hack Attempts . | . . . . . . . . . . . . . . . . . . . . . . . . Triggered . | . . . . . . . . . . . . . . . . . . . . . . . . Disarmed . | . . . . . . . . . . . . . . . . . . . . . . . . Reprogrammed . | . . . . . . . . . . . . . . . . . . . . . . . . Reused . | . . . . . . . . . . . . . . . . . . . . . . . . Traps Extracted . | . . . . . . . . . . . . . . . . . . . . . . . . Installed 1 | . . . . . . . 1 . . . . . . . . . . . . . . . . Triggered . | . . . . . . . . . . . . . . . . . . . . . . . . Most Traps Carried 2 | . . 2 2 1 1 1 1 . . . . . . . . . . . . . . . . Machines | -11 -10 -10 -9 -9 -9 -8 -8 -8 -8 -8 -7 -7 -7 -7 -7 -7 -7 -7 -6 -6 -6 -6 -6 ---------- Run | Yrd Mat Min Mat Min Exi Min Mat Gar Mat Gar Fac Was Fac Gar Fac Gar Fac Gar Fac Was Fac Gar Ext Machines Disabled 87 | . 1 . 3 2 17 2 4 4 3 6 3 . 4 4 . 7 1 3 . . 10 7 6 Max in Single Turn 2 | . 1 . 1 1 2 1 1 1 1 1 1 . 2 1 . 1 1 1 . . 2 1 1 Garrison Access 3 | . . . . . . . . . . . . . 1 . . . . . 1 . 1 . . Garrison Relay 18 | . . . . . . . . 2 . 6 . . . 3 . 3 . 2 . . . 2 . Energy Cycler 3 | . . . . . . . . . . . . . . . . . . . . . . . 3 Machines Repaired . | . . . . . . . . . . . . . . . . . . . . . . . . Machines Dismantled 6 | . . . . . . . . 1 . . . . . . . . 1 . . . . 1 3 Machines Sabotaged . | . . . . . . . . . . . . . . . . . . . . . . . . Overloaded Fab Kills . | . . . . . . . . . . . . . . . . . . . . . . . . Hacking | -11 -10 -10 -9 -9 -9 -8 -8 -8 -8 -8 -7 -7 -7 -7 -7 -7 -7 -7 -6 -6 -6 -6 -6 --------- Run | Yrd Mat Min Mat Min Exi Min Mat Gar Mat Gar Fac Was Fac Gar Fac Gar Fac Gar Fac Was Fac Gar Ext Machines Accessed 102 | . 7 . 14 1 2 . 9 4 6 3 3 . 18 2 3 3 2 3 3 . 9 1 9 Terminals 69 | . 7 . 11 1 . . 5 4 3 3 2 . 9 2 1 3 1 3 1 . 3 1 9 Fabricators 5 | . . . . . . . . . . . . . 3 . 1 . . . 1 . . . . Repair Stations 5 | . . . 1 . . . 1 . . . . . 1 . . . . . . . 2 . . Recycling Units 2 | . . . . . . . 1 . . . 1 . . . . . . . . . . . . Scanalyzers 10 | . . . 2 . . . 1 . 2 . . . 3 . . . . . . . 2 . . Garrison Access 9 | . . . . . . . 1 . 1 . . . 2 . 1 . 1 . 1 . 2 . . Total Hacks 252 | . 20 . 56 2 2 . 26 12 22 4 4 . 41 5 8 5 4 4 7 . 16 1 13 Successful 118 | . 11 . 29 . 2 . 14 1 16 2 1 . 13 2 4 2 1 3 3 . 6 . 8 Failed 134 | . 9 . 27 2 . . 12 11 6 2 3 . 28 3 4 3 3 1 4 . 10 1 5 Catastrophic 39 | . 4 . 6 1 . . 4 3 . 1 1 . 9 1 1 1 1 . 1 . 3 1 1 Database Lockouts . | . . . . . . . . . . . . . . . . . . . . . . . . Manual 70 | . 11 . 15 1 1 . 15 . 8 . 1 . 5 . 3 . 1 . 2 . 7 . . Terminals 161 | . 20 . 36 2 . . 18 12 9 4 3 . 16 5 3 5 2 4 2 . 6 1 13 Fabricators 14 | . . . . . . . . . . . . . 7 . 4 . . . 3 . . . . Repair Stations 20 | . . . 14 . . . 1 . . . . . 3 . . . . . . . 2 . . Recycling Units 2 | . . . . . . . 1 . . . 1 . . . . . . . . . . . . Scanalyzers 36 | . . . 6 . . . 4 . 9 . . . 12 . . . . . . . 5 . . Garrison Access 17 | . . . . . . . 2 . 4 . . . 3 . 1 . 2 . 2 . 3 . . Terminal Hacks 52 | . 5 . 10 . 2 . 5 1 6 2 . . 3 2 2 2 . 3 . . 1 . 8 Record 1 | . . . . . 1 . . . . . . . . . . . . . . . . . . Robot Analysis 3 | . 2 . 1 . . . . . . . . . . . . . . . . . . . . Prototype ID Bank 8 | . 3 . 4 . . . . . . . . . . . . . . . . . . . 1 Open Door 7 | . . . . . . . . . . 1 . . . . . . . . . . . . 6 Branch Access Points 1 | . . . 1 . . . . . . . . . . . . . . . . . . . . Emergency Access Points 4 | . . . . . . . 1 . . . . . . 1 . 1 . 1 . . . . . Terminal Index 1 | . . . . . . . . . . . . . 1 . . . . . . . . . . Fabricator Index 1 | . . . . . . . . . . . . . . . 1 . . . . . . . . Repair Station Index 1 | . . . . . . . . . . . . . 1 . . . . . . . . . . Scanalyzer Index 1 | . . . . . . . . . 1 . . . . . . . . . . . . . . Unreport Threat 6 | . . . 1 . . . 2 . 2 . . . 1 . . . . . . . . . . Locate Traps 1 | . . . . . . . . . 1 . . . . . . . . . . . . . . Transport Status 1 | . . . . . . . . . . . . . . . 1 . . . . . . . . Hauler Manifests 6 | . . . 2 . . . 2 . 1 . . . . . . . . . . . 1 . . Registered Components 2 | . . . . . . . . . 1 . . . . . . . . . . . . . 1 Zone Layout 1 | . . . 1 . . . . . . . . . . . . . . . . . . . . Garrison Registry 3 | . . . . . . . . 1 . . . . . 1 . 1 . . . . . . . Patrol Navigation 1 | . . . . . . . . . . . . . . . . . . 1 . . . . . Security Stations 2 | . . . . . . . . . . 1 . . . . . . . 1 . . . . . Proto ID Catalog 1 | . . . . . 1 . . . . . . . . . . . . . . . . . . Fabricator Hacks 6 | . . . . . . . . . . . . . 3 . 1 . . . 2 . . . . Network Status 2 | . . . . . . . . . . . . . 2 . . . . . . . . . . Load Schematic 1 | . . . . . . . . . . . . . . . . . . . 1 . . . . Build 3 | . . . . . . . . . . . . . 1 . 1 . . . 1 . . . . Repair Station Hacks 10 | . . . 10 . . . . . . . . . . . . . . . . . . . . Scan Component 5 | . . . 5 . . . . . . . . . . . . . . . . . . . . Repair 5 | . . . 5 . . . . . . . . . . . . . . . . . . . . Recycling Unit Hacks 1 | . . . . . . . . . . . 1 . . . . . . . . . . . . Retrieve Components 1 | . . . . . . . . . . . 1 . . . . . . . . . . . . Scanalyzer 22 | . . . 4 . . . 2 . 8 . . . 5 . . . . . . . 3 . . Insert Component 12 | . . . 2 . . . 1 . 4 . . . 3 . . . . . . . 2 . . Analyze 10 | . . . 2 . . . 1 . 4 . . . 2 . . . . . . . 1 . . Garrison Access Hacks 9 | . . . . . . . 1 . 1 . . . 2 . 1 . 1 . 1 . 2 . . Unlock Access 6 | . . . . . . . 1 . 1 . . . 1 . 1 . 1 . . . 1 . . Seal Access 3 | . . . . . . . . . . . . . 1 . . . . . 1 . 1 . . Unauthorized Hacks 18 | . 6 . 5 . . . 6 . 1 . . . . . . . . . . . . . . Terminals 14 | . 6 . 5 . . . 3 . . . . . . . . . . . . . . . . Assimilate 1 | . 1 . . . . . . . . . . . . . . . . . . . . . . Operators 2 | . 1 . . . . . 1 . . . . . . . . . . . . . . . . Skim 11 | . 4 . 5 . . . 2 . . . . . . . . . . . . . . . . Fabricators . | . . . . . . . . . . . . . . . . . . . . . . . . Repair Stations 1 | . . . . . . . 1 . . . . . . . . . . . . . . . . Patch 1 | . . . . . . . 1 . . . . . . . . . . . . . . . . Recycling Units 1 | . . . . . . . 1 . . . . . . . . . . . . . . . . Tunnel 1 | . . . . . . . 1 . . . . . . . . . . . . . . . . Scanalyzers . | . . . . . . . . . . . . . . . . . . . . . . . . Garrison Access 2 | . . . . . . . 1 . 1 . . . . . . . . . . . . . . Reprogram 2 | . . . . . . . 1 . 1 . . . . . . . . . . . . . . Data Cores Recovered . | . . . . . . . . . . . . . . . . . . . . . . . . Used . | . . . . . . . . . . . . . . . . . . . . . . . . Hacking Detections 83 | . 7 . 14 1 . . 6 4 5 2 2 . 17 2 2 2 2 2 3 . 8 1 3 Full Trace Events 10 | . . . . . . . 1 2 . . . . 3 1 . 1 . . 1 . 1 . . Feedback Events 2 | . . . . . . . . . . . . . . . . . . . . . 2 . . Corruption 1 | . . . . . . . . . . . . . . . . . . . . . 1 . . Hackware Fried 1 | . . . . . . . . . . . . . . . . . . . . . 1 . . Feedback Blocked . | . . . . . . . . . . . . . . . . . . . . . . . . Robot Schematics Acquired . | . . . . . . . . . . . . . . . . . . . . . . . . Robots Built 1 | . . . . . . . . . . . . . . . 1 . . . . . . . . Authchips . | . . . . . . . . . . . . . . . . . . . . . . . . Time 58 | . . . . . . . . . . . . . . . 58 . . . . . . . . Total Robot Build Rating 3 | . . . . . . . . . . . . . . . 3 . . . . . . . . Part Schematics Acquired 9 | . . . 2 . . . . . 4 . . . 2 . . . . . . . 1 . . Parts Built 4 | . . . . . . . . . . . . . 2 . . . . . 2 . . . . Authchips . | . . . . . . . . . . . . . . . . . . . . . . . . Time 89 | . . . . . . . . . . . . . 31 . . . . . 58 . . . . Total Part Build Rating 24 | . . . . . . . . . . . . . 10 . . . . . 14 . . . . Parts Repaired 5 | . . . 5 . . . . . . . . . . . . . . . . . . . . Time 198 | . . . 198 . . . . . . . . . . . . . . . . . . . . Parts Recycled . | . . . . . . . . . . . . . . . . . . . . . . . . Recycled Matter . | . . . . . . . . . . . . . . . . . . . . . . . . Retrieved Matter . | . . . . . . . . . . . . . . . . . . . . . . . . Retrieved Components 8 | . . . . . . . . . . . 8 . . . . . . . . . . . . Parts Scanalyzed 10 | . . . 2 . . . 1 . 4 . . . 2 . . . . . . . 1 . . Part Schematics Acquired 9 | . . . 2 . . . . . 4 . . . 2 . . . . . . . 1 . . Parts Damaged 1 | . . . . . . . . . . . . . . . . . . . . . 1 . . Bothacking | -11 -10 -10 -9 -9 -9 -8 -8 -8 -8 -8 -7 -7 -7 -7 -7 -7 -7 -7 -6 -6 -6 -6 -6 ------------ Run | Yrd Mat Min Mat Min Exi Min Mat Gar Mat Gar Fac Was Fac Gar Fac Gar Fac Gar Fac Was Fac Gar Ext Used RIF Installer 7 | . . . . . . . . 2 . 1 . . . 1 . 1 . 1 . . . 1 . Coupler Efficiency 2 | . . . . . . . . . . 1 . . . . . 1 . . . . . . . Signal Jammer 1 | . . . . . . . . . . . . . . . . . . . . . . 1 . Zone Cloak 1 | . . . . . . . . . . . . . . . . . . 1 . . . . . Structural Interface 1 | . . . . . . . . . . . . . . 1 . . . . . . . . . Program Shield 1 | . . . . . . . . 1 . . . . . . . . . . . . . . . Robots Hacked 30 | . . . . . 5 . 1 . 1 . 3 6 1 . . 1 . 1 2 6 1 . 2 Non-combat 13 | . . . . . 3 . . . 1 . 3 . 1 . . 1 . 1 2 . 1 . . Combat 17 | . . . . . 2 . 1 . . . . 6 . . . . . . . 6 . . 2 Robot Hacks Applied 32 | . . . . . 6 . 1 . 1 . 3 6 1 . . 1 . 1 2 7 1 . 2 parse_system 11 | . . . . . 6 . 1 . . . 1 . . . . . . . . 1 . . 2 find_chute 2 | . . . . . . . . . . . 1 . . . . . . . 1 . . . . ignore_targets 12 | . . . . . . . . . . . . 6 . . . . . . . 6 . . . formatsys_low 6 | . . . . . . . . . 1 . 1 . 1 . . 1 . 1 . . 1 . . formatsys_high 1 | . . . . . . . . . . . . . . . . . . . 1 . . . . Relay Couplers Released 83 | . . . . . . . . 10 . 25 . . . 16 . 14 . 10 . . . 8 . Machine Destruction 80 | . . . . . . . . 10 . 25 . . . 13 . 14 . 10 . . . 8 . Programmers 3 | . . . . . . . . . . . . . . 3 . . . . . . . . . Attached 8 | . . . . . . . . . 1 . 1 . 1 . . 1 . 2 1 . 1 . . Fabnet Peak Effective % . | . . . . . . . . . . . . . . . . . . . . . . . . Robots Rewired 46 | . . . . . . . . 7 . 2 . . . . . 9 . 1 . . . 9 18 Allies Hacked 2 | . . . . . . . . . . . . . . . . . . . . . . . 2 Hacks Repelled . | . . . . . . . . . . . . . . . . . . . . . . . . Allies | -11 -10 -10 -9 -9 -9 -8 -8 -8 -8 -8 -7 -7 -7 -7 -7 -7 -7 -7 -6 -6 -6 -6 -6 -------- Run | Yrd Mat Min Mat Min Exi Min Mat Gar Mat Gar Fac Was Fac Gar Fac Gar Fac Gar Fac Was Fac Gar Ext Total Allies 97 | . 1 . . 3 . . 3 7 1 4 1 . 1 . 1 12 . 2 1 19 1 11 29 Largest Group 34 | . 1 1 . 3 1 . 3 6 6 5 5 1 1 . 1 12 10 10 2 20 18 12 34 Highest-Rated Group 1476 | . 10 10 . 40 16 . 48 160 150 104 104 23 23 . 23 433 305 305 43 725 625 572 1476 Highest-Rated Ally 159 | . 10 10 . 16 16 . 16 39 39 31 31 23 23 . 23 95 80 80 26 50 46 119 159 Total Orders 97 | . . . . . 1 . . . 1 26 2 1 1 . 1 29 3 5 1 . 1 22 3 STAY 27 | . . . . . 1 . . . . 13 . . . . . 9 . . . . . 4 . FOLLOW 16 | . . . . . . . . . . 4 . . . . . 8 . . . . . 4 . GUARD 13 | . . . . . . . . . . . . . . . . 4 1 2 . . . 5 1 AID 41 | . . . . . . . . . 1 9 2 1 1 . 1 8 2 3 1 . 1 9 2 Ally Attacks 632 | . . . . 28 3 . . 37 30 9 16 . . . . 55 25 44 . . 138 47 200 Total Damage 14548 | . . . . 291 14 . . 606 702 212 187 . . . . 2194 531 952 . . 2800 1513 4546 Kills 119 | . . . . 4 . . . 7 8 . . . . . . 19 5 11 . . 19 9 37 Allies Corrupted 6 | . . . . 1 . . . . 1 . . . . . . 1 . . . 2 1 . . Allies Melted 2 | . . . . . . . . . . . . . . . . . . 1 . . 1 . . Intel | -11 -10 -10 -9 -9 -9 -8 -8 -8 -8 -8 -7 -7 -7 -7 -7 -7 -7 -7 -6 -6 -6 -6 -6 ------- Run | Yrd Mat Min Mat Min Exi Min Mat Gar Mat Gar Fac Was Fac Gar Fac Gar Fac Gar Fac Was Fac Gar Ext Active Infowar (turns) 1186 | 105 1074 7 . . . . . . . . . . . . . . . . . . . . . Sensors 1 | . . 1 . . . . . . . . . . . . . . . . . . . . . Seismic 1185 | 105 1074 6 . . . . . . . . . . . . . . . . . . . . . Robot Analysis Total 3 | . 2 . 1 . . . . . . . . . . . . . . . . . . . . Derelict Logs Recovered 4 | . . 2 . 2 . . . . . . . . . . . . . . . . . . . Drone Launches . | . . . . . . . . . . . . . . . . . . . . . . . . Drone Recoveries . | . . . . . . . . . . . . . . . . . . . . . . . . Exploration | -11 -10 -10 -9 -9 -9 -8 -8 -8 -8 -8 -7 -7 -7 -7 -7 -7 -7 -7 -6 -6 -6 -6 -6 ------------- Run | Yrd Mat Min Mat Min Exi Min Mat Gar Mat Gar Fac Was Fac Gar Fac Gar Fac Gar Fac Was Fac Gar Ext Turns Passed 32874 | 211 1074 614 2094 805 2041 514 2465 1470 1513 2493 1035 738 3373 766 380 2124 260 2169 639 1074 1661 2252 1109 Spaces Moved 19119 | 145 786 477 1322 678 1284 380 1318 922 518 1680 669 392 2114 364 212 1207 148 1009 327 595 961 1133 478 Core 45 | 1 . . . . . . . . . . . . . . . . . . . . . . 44 Treads . | . . . . . . . . . . . . . . . . . . . . . . . . Legs . | . . . . . . . . . . . . . . . . . . . . . . . . Wheels 19074 | 144 786 477 1322 678 1284 380 1318 922 518 1680 669 392 2114 364 212 1207 148 1009 327 595 961 1133 434 Hover . | . . . . . . . . . . . . . . . . . . . . . . . . Flight . | . . . . . . . . . . . . . . . . . . . . . . . . Fastest Speed 50 | 50 80 95 95 110 95 115 130 130 120 120 120 135 135 115 145 145 145 130 145 135 135 141 50 Average Speed 128 | 89 94 101 104 110 120 116 130 130 122 120 134 135 136 144 145 145 145 138 148 143 148 141 132 Slowest Speed 225 | 100 95 105 125 110 165 165 130 130 165 120 135 135 145 145 145 145 145 180 150 150 225 141 158 Overloaded Moves . | . . . . . . . . . . . . . . . . . . . . . . . . Propulsion Burnouts . | . . . . . . . . . . . . . . . . . . . . . . . . Robots Hopped . | . . . . . . . . . . . . . . . . . . . . . . . . Potential Cave-ins 1 | . . . . . . . . . . . . . . . . . . . 1 . . . . Cave-ins Triggered . | . . . . . . . . . . . . . . . . . . . . . . . . Exploration Rate (%) 64 | 5 97 96 97 98 89 95 90 73 42 86 16 99 48 46 4 76 5 95 11 96 25 97 65 Regions Visited 23 Branch Regions 5 Pre-discovered Areas 6 | . . . 2 2 1 . 1 . . . . . . . . . . . . . . . . Known Exits Taken 9 | . . 1 1 . . 1 1 . 1 . . . 1 . 1 . 1 . . . 1 . . Unknown Exits Taken 4 | 1 1 . . 1 1 . . . . . . . . . . . . . . . . . . Scrap Searched 4 | . . 1 . 2 . 1 . . . . . . . . . . . . . . . . . Spaces Dug 63 | . . . 4 . 15 . . 1 3 8 1 . 6 2 . . . . 13 1 3 4 2 Terrain Destroyed 293 | . 4 . 4 . 68 6 32 1 3 8 16 3 64 4 . 1 1 8 20 5 20 4 21 Melee 30 | . . . 4 . . . . 1 3 8 1 . 1 2 . . . . 4 . . 4 2 Projectile 134 | . . . . . 15 6 31 . . . . 3 14 2 . 1 1 7 16 5 18 . 15 AOE 123 | . 4 . . . 51 . . . . . 15 . 49 . . . . . . . . . 4 Terrain Rammed . | . . . . . . . . . . . . . . . . . . . . . . . . Walls Destroyed . | . . . . . . . . . . . . . . . . . . . . . . . . Machines Disabled . | . . . . . . . . . . . . . . . . . . . . . . . . Actions | -11 -10 -10 -9 -9 -9 -8 -8 -8 -8 -8 -7 -7 -7 -7 -7 -7 -7 -7 -6 -6 -6 -6 -6 --------- Run | Yrd Mat Min Mat Min Exi Min Mat Gar Mat Gar Fac Was Fac Gar Fac Gar Fac Gar Fac Was Fac Gar Ext Total 25155 | 196 1063 552 1802 716 1630 408 1846 1119 1369 2031 781 534 2475 504 284 1497 171 1504 424 750 1113 1614 772 Wait 2809 | 9 211 5 296 23 125 2 326 18 811 124 7 13 186 9 48 61 6 245 2 63 28 154 37 Move 19102 | 144 785 476 1321 677 1283 379 1317 921 517 1679 669 391 2114 363 212 1206 148 1008 327 594 961 1132 478 Hop . | . . . . . . . . . . . . . . . . . . . . . . . . Pick Up 245 | 12 16 8 23 2 36 . 27 3 2 4 15 9 11 10 4 8 1 13 12 7 12 6 4 Fast Attach 69 | 7 . 2 8 . 1 2 6 . 2 . 6 1 8 9 . . . 9 . . 4 2 2 Attach 74 | . 1 . 5 . 7 . 15 . . 1 5 1 5 6 1 1 . 4 3 5 5 2 7 Detach 5 | . . . 1 . 1 . . . . . . . . 1 . . . 1 . . 1 . . Swap 388 | 2 9 14 22 3 15 2 23 15 8 24 13 10 25 9 6 16 6 42 17 14 33 24 36 Drop 260 | 5 11 16 26 2 29 2 28 5 1 5 10 9 14 8 5 9 1 24 15 6 18 6 5 Fire 1536 | 17 30 31 95 9 123 21 102 58 25 91 55 97 98 77 . 62 3 130 36 57 51 122 146 Melee 92 | . . . 5 . 9 . 1 8 3 29 1 3 6 4 . . . 1 4 4 . 12 2 Ram . | . . . . . . . . . . . . . . . . . . . . . . . . Kick . | . . . . . . . . . . . . . . . . . . . . . . . . Crush . | . . . . . . . . . . . . . . . . . . . . . . . . Escape Stasis 266 | . . . . . . . . 40 . 56 . . 8 8 8 48 . 24 8 . . 55 11 Rewire 266 | . . . . . 1 . . 43 . 18 . . . . . 86 . 3 . . . 91 24 Trap 1 | . . . . . . . 1 . . . . . . . . . . . . . . . . Miscellaneous 42 | . . . . . . . . 8 . . . . . . . . 6 . . . . 8 20 Route ------- -11/Scrapyard -10/Materials (discovered 5 exits: *Mat x3 / [*Min x2]) -10/Mines (discovered 2 exits: *Mat x2) -9/Materials (discovered 5 exits: *Mat x3 / *Min x2) -9/Mines (discovered 3 exits: *Mat x2 / *Exi) -9/Exiles (discovered 2 exits: [*Min x2]) -8/Mines (discovered 2 exits: *Mat x2) -8/Materials (discovered 5 exits: *Fac x2 / [*Sto x2] / Gar) -8/Garrison (discovered 3 exits: *Mat x3) -8/Materials -8/Garrison (discovered 3 exits: *Fac x3) -7/Factory -7/Waste -7/Factory -7/Garrison (discovered 4 exits: *Fac x4) -7/Factory -7/Garrison (discovered 4 exits: *Fac x3 / *Fac) -7/Factory -7/Garrison (discovered 3 exits: *Fac x3) -6/Factory -6/Waste -6/Factory -6/Garrison (discovered 3 exits: *Ext x3) -6/Extension History --------- Turn | Location | Event 7 | -11/Scrapyard | Discovered new exit (range 15) 212 | -11/Scrapyard | Entered Materials 300 | -10/Materials | Build established: Mutant 322 | -10/Materials | Discovered new exit (range 9) 356 | -10/Materials | Discovered new exit (range 15) 559 | -10/Materials | Discovered new exit (range 16) 646 | -10/Materials | Discovered new exit (range 16) 751 | -10/Materials | Discovered new exit (range 12) 1286 | -10/Materials | Entered Mines 1286 | -10/Mines | Accompanied by 1 ally 1345 | -10/Mines | Found DCF Scrap (12 items) 1371 | -10/Mines | Identified exit to Materials 1399 | -10/Mines | Discovered exit to Materials (range 8) 1731 | -10/Mines | Build established: Scavenger-Mutant 1773 | -10/Mines | Found a hidden stash of uninstalled traps 1802 | -10/Mines | Found a damaged Exp. Sensor Array with a note attached 1805 | -10/Mines | Found Prototype Device 1805 | -10/Mines | Identified Exp. Sensor Array 1839 | -10/Mines | Learned location of 1 exit from Materials 1900 | -10/Mines | Entered Materials 1900 | -9/Materials | Evolved 2 slots: Weapon x2 1901 | -9/Materials | Identified exit to Materials 2305 | -9/Materials | Identified exit to Mines 2417 | -9/Materials | Build established: Scavenger-Gunner 2575 | -9/Materials | Learned Storage emergency access door positions 2609 | -9/Materials | Learned 2 Storage zone layouts 2676 | -9/Materials | Learned location of Zion (-6) 2703 | -9/Materials | Learned location of Mines (-9) 2773 | -9/Materials | Build established: Tank 3810 | -9/Materials | Repaired Imp. Assault Rifle 3844 | -9/Materials | Repaired Shield Generator 3896 | -9/Materials | Repaired Imp. Assault Rifle 3929 | -9/Materials | Repaired Imp. Ion Engine 3963 | -9/Materials | Repaired Hvy. Assault Rifle 3994 | -9/Materials | Entered Mines 3995 | -9/Mines | Learned location of Storage (-8) 4018 | -9/Mines | Assisted by bots powering up and referring to "LRC-V3" 4258 | -9/Mines | Learned Materials trap positions 4558 | -9/Mines | Discovered exit to Materials (range 5) 4681 | -9/Mines | Discovered exit to Materials (range 7) 4795 | -9/Mines | Deemed a non-threat by the Exiles lab entrance 4795 | -9/Mines | Discovered new exit (range 5) 4799 | -9/Mines | Entered Exiles 4799 | -9/Exiles | Accompanied by 1 ally 4817 | -9/Exiles | Discovered new exit (range 15) 4830 | -9/Exiles | Met 8R-AWN 4846 | -9/Exiles | Met EX-HEX 4910 | -9/Exiles | Met EX-DEC 5097 | -9/Exiles | Build established: Mutant 5245 | -9/Exiles | Discovered new exit (range 10) 5400 | -9/Exiles | Met EX-BIN 5420 | -9/Exiles | Aligned with FarCom system 5421 | -9/Exiles | Given EX-Vault access code 5453 | -9/Exiles | Opened EX-Vault 5461 | -9/Exiles | Found Superbattery 5465 | -9/Exiles | Found Gui. Plasma Cannon 5467 | -9/Exiles | Found Supersonic Drone Bay 5488 | -9/Exiles | Warned to stay clear of 0b10 Research branches 5994 | -9/Exiles | Attacked by the Exiles 6118 | -9/Exiles | Core integrity fell below 50% 6129 | -9/Exiles | Destroyed 8R-AWN 6136 | -9/Exiles | Found 8R-AWN's Boregun 6139 | -9/Exiles | Found 8R-AWN's Boregun 6152 | -9/Exiles | Lost 4 parts (2n1u1w) 6337 | -9/Exiles | Destroyed EX-BIN 6443 | -9/Exiles | Destroyed EX-DEC 6487 | -9/Exiles | Destroyed EX-HEX 6496 | -9/Exiles | Found Exp. Core Analyzer 6503 | -9/Exiles | Found System Purifier 6689 | -9/Exiles | Build established: Tank 6840 | -9/Exiles | Entered Mines 6998 | -8/Mines | Discovered exit to Materials (range 11) 7195 | -8/Mines | Build established: Scavenger-Tank 7288 | -8/Mines | Discovered exit to Materials (range 5) 7354 | -8/Mines | Entered Materials 7354 | -8/Materials | Evolved 2 slots: Utility x1, Weapon x1 7355 | -8/Materials | Loaded intel: 6 trap records 7524 | -8/Materials | Discovered new exit (range 3) 7643 | -8/Materials | Garrison activated, responded to threat 7764 | -8/Materials | Garrison activated, responded to threat 7942 | -8/Materials | Discovered new exit (range 7) 8463 | -8/Materials | Discovered new exit (range 4) 8550 | -8/Materials | Met 7R-MNS 8582 | -8/Materials | Attacked by 7R-MNS 8655 | -8/Materials | 7R-MNS lamented failing the tripod run 8655 | -8/Materials | Destroyed 7R-MNS 8677 | -8/Materials | Found Centrium Heavy Armor Plating 8681 | -8/Materials | Lost 9 parts (1p8w) 9125 | -8/Materials | Build established: Gunner 9269 | -8/Materials | Discovered new exit (range 10) 9425 | -8/Materials | Garrison activated, responded to threat 9471 | -8/Materials | Identified exit to Garrison 9819 | -8/Materials | Entered Garrison 9845 | -8/Garrison | Installed Relay Interface Framework 9859 | -8/Garrison | Triggered checkpoint 9954 | -8/Garrison | Triggered checkpoint 9987 | -8/Garrison | Triggered checkpoint 10015 | -8/Garrison | Triggered checkpoint 10045 | -8/Garrison | Triggered checkpoint 10124 | -8/Garrison | Discovered new exit (range 11) 10151 | -8/Garrison | Triggered checkpoint 10202 | -8/Garrison | Garrison Relay disabled 10377 | -8/Garrison | Triggered checkpoint 10386 | -8/Garrison | Core integrity fell below 50% 10477 | -8/Garrison | Discovered new exit (range 10) 10593 | -8/Garrison | Triggered checkpoint 10619 | -8/Garrison | Triggered checkpoint 10636 | -8/Garrison | Garrison Relay disabled 10802 | -8/Garrison | Expanded RIF knowledge: Program Shield 10961 | -8/Garrison | Discovered new exit (range 13) 10966 | -8/Garrison | Build established: Commander-Gunner 11035 | -8/Garrison | Triggered checkpoint 11081 | -8/Garrison | Triggered checkpoint 11096 | -8/Garrison | Discovered new exit (range 68) 11096 | -8/Garrison | Discovered new exit (range 73) 11096 | -8/Garrison | Discovered new exit (range 25) 11289 | -8/Garrison | Entered Materials 11289 | -8/Materials | Accompanied by 5 allies 11482 | -8/Materials | Garrison activated, responded to threat 11518 | -8/Materials | Identified exit to Garrison 12506 | -8/Materials | Lost 3 allies 12740 | -8/Materials | Build established: Gunner 12802 | -8/Materials | Entered Garrison 12802 | -8/Garrison | Accompanied by 3 allies 12882 | -8/Garrison | Triggered checkpoint 12961 | -8/Garrison | Expanded RIF knowledge: Coupler Efficiency 13004 | -8/Garrison | Garrison Relay disabled 13124 | -8/Garrison | Learned Factory security intel 13358 | -8/Garrison | Triggered checkpoint 13575 | -8/Garrison | Triggered checkpoint 13603 | -8/Garrison | Triggered checkpoint 13630 | -8/Garrison | Triggered checkpoint 13674 | -8/Garrison | Garrison Relay disabled 14086 | -8/Garrison | Discovered new exit (range 10) 14110 | -8/Garrison | Triggered checkpoint 14134 | -8/Garrison | Triggered checkpoint 14135 | -8/Garrison | Garrison Relay disabled 14241 | -8/Garrison | Rescued a captive Derelict 14243 | -8/Garrison | Rescued a captive Derelict 14444 | -8/Garrison | Triggered checkpoint 14470 | -8/Garrison | Discovered new exit (range 8) 14543 | -8/Garrison | Triggered checkpoint 14776 | -8/Garrison | Triggered checkpoint 14804 | -8/Garrison | Discovered new exit (range 11) 15039 | -8/Garrison | Garrison Relay disabled 15053 | -8/Garrison | Garrison Relay disabled 15226 | -8/Garrison | Garrison Relay disabled 15295 | -8/Garrison | Entered Factory 15295 | -7/Factory | Accompanied by 5 allies 15295 | -7/Factory | Evolved 2 slots: Utility x1, Weapon x1 15598 | -7/Factory | Build established: Executioner 15695 | -7/Factory | First assault squad dispatched 16001 | -7/Factory | Lost 3 allies 16330 | -7/Factory | Sucked down chute 16330 | -7/Factory | Entered Waste 16335 | -7/Waste | 1 allies followed down the chute 16368 | -7/Waste | Spotted C-40 Crusher 16373 | -7/Waste | Spotted C-40 Crusher 16373 | -7/Waste | Spotted C-40 Crusher 16412 | -7/Waste | Spotted C-40 Crusher 16426 | -7/Waste | Spotted C-40 Crusher 16446 | -7/Waste | Destroyed C-40 Crusher 16480 | -7/Waste | Destroyed C-40 Crusher 16532 | -7/Waste | Spotted C-40 Crusher 16641 | -7/Waste | Discovered new exit (range 11) 16834 | -7/Waste | Destroyed C-40 Crusher 16856 | -7/Waste | Destroyed C-40 Crusher 16912 | -7/Waste | Destroyed C-40 Crusher 17068 | -7/Waste | Entered Factory 17100 | -7/Factory | Build established: Scavenger-Executioner 17528 | -7/Factory | Build established: Executioner 18143 | -7/Factory | Fabricated Hvy. Flak Cannon (x2) 18468 | -7/Factory | Build established: Scavenger-Executioner 18819 | -7/Factory | Cargo convoy interrupted 19134 | -7/Factory | Build established: Executioner 20346 | -7/Factory | Garrison activated, responded to threat 20441 | -7/Factory | Identified exit to Garrison 20441 | -7/Factory | Entered Garrison 20472 | -7/Garrison | Triggered checkpoint 20579 | -7/Garrison | Assembled breached garrison interior 20595 | -7/Garrison | Garrison Relay disabled 20760 | -7/Garrison | Lost 4 parts (4w) 20807 | -7/Garrison | Garrison Relay disabled 20850 | -7/Garrison | Build established: Scavenger-Executioner 21100 | -7/Garrison | Garrison Relay disabled 21129 | -7/Garrison | Discovered new exit (range 81) 21129 | -7/Garrison | Discovered new exit (range 13) 21129 | -7/Garrison | Discovered new exit (range 53) 21129 | -7/Garrison | Discovered new exit (range 24) 21172 | -7/Garrison | Expanded RIF knowledge: Structural Interface 21207 | -7/Garrison | Entered Factory 21369 | -7/Factory | Fabricated M-28 Smith? 21587 | -7/Factory | Identified exit to Garrison 21587 | -7/Factory | Entered Garrison 21587 | -7/Garrison | Accompanied by 1 ally 21602 | -7/Garrison | Triggered checkpoint 21644 | -7/Garrison | Garrison Relay disabled 21812 | -7/Garrison | Discovered new exit (range 3) 21908 | -7/Garrison | Triggered checkpoint 22012 | -7/Garrison | Expanded RIF knowledge: Coupler Efficiency 22062 | -7/Garrison | Discovered new exit (range 11) 22064 | -7/Garrison | Triggered checkpoint 22101 | -7/Garrison | Triggered checkpoint 22158 | -7/Garrison | Found embedded Infiltrators 22411 | -7/Garrison | Triggered checkpoint 22449 | -7/Garrison | Triggered checkpoint 22468 | -7/Garrison | Garrison Relay disabled 22501 | -7/Garrison | Build established: Commander-Executioner 22618 | -7/Garrison | Triggered checkpoint 22751 | -7/Garrison | Triggered checkpoint 22851 | -7/Garrison | Discovered new exit (range 30) 22851 | -7/Garrison | Discovered new exit (range 60) 22851 | -7/Garrison | Discovered new exit (range 26) 22851 | -7/Garrison | Discovered new exit (range 45) 23711 | -7/Garrison | Entered Factory 23711 | -7/Factory | Accompanied by 10 allies 23965 | -7/Factory | Identified exit to Garrison 23971 | -7/Factory | Entered Garrison 23971 | -7/Garrison | Accompanied by 10 allies 24008 | -7/Garrison | Expanded RIF knowledge: Zone Cloak 24021 | -7/Garrison | Core integrity fell below 50% 24066 | -7/Garrison | Lost 7 allies 24071 | -7/Garrison | Triggered checkpoint 24108 | -7/Garrison | Lost 3 allies 24145 | -7/Garrison | Triggered checkpoint 24235 | -7/Garrison | Garrison Relay disabled 24302 | -7/Garrison | Build established: Scavenger-Executioner 24941 | -7/Garrison | Triggered checkpoint 25007 | -7/Garrison | Discovered new exit (range 8) 25079 | -7/Garrison | Triggered checkpoint 25522 | -7/Garrison | Discovered new exit (range 3) 25534 | -7/Garrison | Garrison Relay disabled 25556 | -7/Garrison | Triggered checkpoint 25719 | -7/Garrison | Triggered checkpoint 25923 | -7/Garrison | Triggered checkpoint 26087 | -7/Garrison | Discovered new exit (range 9) 26096 | -7/Garrison | Learned Factory security intel 26140 | -7/Garrison | Entered Factory 26140 | -6/Factory | Accompanied by 2 allies 26140 | -6/Factory | Evolved 2 slots: Utility x2 26529 | -6/Factory | Fabricated Hyp. Mass Driver (x2) 26766 | -6/Factory | Spotted B-75 Beast 26779 | -6/Factory | Sucked down chute 26779 | -6/Factory | Entered Waste 26784 | -6/Waste | 2 allies followed down the chute 26846 | -6/Waste | Spotted C-40 Crusher 26856 | -6/Waste | Spotted C-40 Crusher 26858 | -6/Waste | Spotted C-40 Crusher 26868 | -6/Waste | Spotted C-40 Crusher 26871 | -6/Waste | Spotted C-40 Crusher 26874 | -6/Waste | Spotted C-40 Crusher 26922 | -6/Waste | Destroyed C-40 Crusher 26932 | -6/Waste | Destroyed C-40 Crusher 26948 | -6/Waste | Destroyed C-40 Crusher 27014 | -6/Waste | Destroyed C-40 Crusher 27024 | -6/Waste | Destroyed C-40 Crusher 27046 | -6/Waste | Destroyed C-40 Crusher 27048 | -6/Waste | Discovered new exit (range 15) 27184 | -6/Waste | Warlord forces began an assault 27432 | -6/Waste | Found Prototype Processor 27432 | -6/Waste | Identified Exp. Terrain Scan Processor 27853 | -6/Waste | Entered Factory 27853 | -6/Factory | Accompanied by 18 allies 28328 | -6/Factory | Garrison activated, responded to threat 28374 | -6/Factory | Lost 3 allies 28421 | -6/Factory | Adv. Hacking Suite fried by hacking feedback 28501 | -6/Factory | Lost 3 allies 28903 | -6/Factory | First assault squad dispatched 29152 | -6/Factory | P-60 Hacker assimilated allied 41-VJ3(g) 29154 | -6/Factory | P-60 Hacker assimilated allied VW-0PS(g) 29210 | -6/Factory | Lost 3 allies 29509 | -6/Factory | Identified exit to Garrison 29514 | -6/Factory | Entered Garrison 29514 | -6/Garrison | Accompanied by 4 allies 29539 | -6/Garrison | Triggered checkpoint 29565 | -6/Garrison | Garrison Relay disabled 29603 | -6/Garrison | Spotted B-75 Beast 29623 | -6/Garrison | Destroyed B-75 Beast 29666 | -6/Garrison | Rewired B-86 Titan 29670 | -6/Garrison | Rewired B-75 Beast 29828 | -6/Garrison | Triggered checkpoint 29850 | -6/Garrison | Triggered checkpoint 29876 | -6/Garrison | Destroyed 7 combat bots 29909 | -6/Garrison | Triggered checkpoint 29957 | -6/Garrison | Triggered checkpoint 30320 | -6/Garrison | Triggered checkpoint 30335 | -6/Garrison | Discovered new exit (range 11) 30380 | -6/Garrison | Triggered checkpoint 30383 | -6/Garrison | Garrison Relay disabled 30438 | -6/Garrison | Found embedded Infiltrators 30624 | -6/Garrison | Triggered checkpoint 30985 | -6/Garrison | Discovered new exit (range 13) 31006 | -6/Garrison | Triggered checkpoint 31025 | -6/Garrison | Expanded RIF knowledge: Signal Jamming 31508 | -6/Garrison | Triggered checkpoint 31597 | -6/Garrison | Discovered new exit (range 11) 31619 | -6/Garrison | Spotted Striker 31619 | -6/Garrison | Spotted Striker 31631 | -6/Garrison | Destroyed Striker 31636 | -6/Garrison | Destroyed Striker 31685 | -6/Garrison | Rewired Executioner 31689 | -6/Garrison | Rewired Executioner 31766 | -6/Garrison | Entered Extension 31766 | -6/Extension | Accompanied by 9 allies 31845 | -6/Extension | Rescued a captive Derelict 31846 | -6/Extension | Rescued a captive Derelict 31942 | -6/Extension | Rescued a captive Derelict 31965 | -6/Extension | Rescued a captive Derelict 31966 | -6/Extension | Rescued a captive Derelict 31979 | -6/Extension | Build established: Commander-Executioner 32015 | -6/Extension | Rescued a captive Derelict 32016 | -6/Extension | Rescued a captive Derelict 32116 | -6/Extension | First assault squad dispatched 32156 | -6/Extension | Rescued A7 32209 | -6/Extension | Rescued a captive Derelict 32325 | -6/Extension | Destroyed 8 combat bots 32337 | -6/Extension | Rescued a captive Derelict 32338 | -6/Extension | Rescued a captive Derelict 32372 | -6/Extension | Spotted B-75 Beast 32379 | -6/Extension | High security lockdown imminent 32379 | -6/Extension | Allies destroyed B-75 Beast 32381 | -6/Extension | Spotted B-75 Beast 32389 | -6/Extension | Destroyed B-75 Beast 32418 | -6/Extension | Lost 3 allies 32450 | -6/Extension | Energy Cycler disabled 32453 | -6/Extension | Rescued a captive Derelict 32459 | -6/Extension | High security lockdown engaged 32661 | -6/Extension | Lost 17 allies 32668 | -6/Extension | Allies destroyed Executioner 32731 | -6/Extension | Lost 4 allies 32744 | -6/Extension | Destroyed 16 combat bots 32835 | -6/Extension | Core integrity fell below 50% 32837 | -6/Extension | System corruption reached 10% 32851 | -6/Extension | Destroyed 16 combat bots 32863 | -6/Extension | Core integrity fell below 20% 32867 | -6/Extension | Lost 18 parts (1p2n6u9w) 32875 | -6/Extension | Destroyed by P-60 Hacker with Shock Rifle Last Messages --------------- 32837_ System corrupted: Matter fused (-7). 32843_ Acquired 7 matter. 32847_ Door malfunctions. 32851_ Triggered Stasis Trap. 32851_ A bubble of rippling energy engulfs the area. 32851_ Field strength at 94. 32852_ System corrupted: Energy discharge (-25). 32852_ Field strength at 88. 32853_ Field strength at 82. 32854_ Field strength at 76. 32855_ Field strength at 70. 32856_ Field strength at 64. 32857_ Field strength at 58. 32858_ Field strength at 52. 32859_ Field strength at 46. 32860_ Field strength at 29. 32861_ Field strength at 23. 32862_ Field strength at 12. 32863_ Stasis field depleted. 32865_ Critical hit (Burn: +37). Map ----- +----------------------------------------------------+ | | | | | | | | | | | | | | | | | | | | | | | | | ?????????????????????????????????????????? | | ##########???????????????????????????????? | | #???????????????????????????????? | | %=#??????????##???????????????????? | | *=#?????????? ????????#??????????? | | ########[#?????????? #??????? #??????????? | | #??????#[#?????????# #??????? #??????????? | | #! ????#%#?????????# #?????? #??????????? | | " ?#!#?????????# #?????? #??????????? | | #= ! #[########### #????? #??????????? | | / /%! #????? #??????????? | | " #/ ^ #???? #??????????? | | #####??#%"p ##### ####???????? | | %%" " @ #????? | | "%%"####+########;;############# #????? | | %"" ????????????####?????????????????????? | | " ?????????????????????????????????????? | | ####?????????????????????????????????????? | | ?????????????????????????????????????????? | | ?????????????????????????????????????????? | | ?????????????????????????????????????????? | | ?????????????????????????????????????????? | | ?????????????????????????????????????????? | | ?????????????????????????????????????????? | | ?????????????????????????????????????????? | | ?????????????????????????????????????????? | | ?????????????????????????????????????????? | | ?????????????????????????????????????????? | | ?????????????????????????????????????????? | | ?????????????????????????????????????????? | | ?????????????????????????????????????????? | | ?????????????????????????????????????????? | | ?????????????????????????????????????????? | | ?????????????????????????????????????????? | | ?????????????????????????????????????????? | | ?????????????????????????????????????????? | | ?????????????????????????????????????????? | | ?????????????????????????????????????????? | +----------------------------------------------------+ Best States ------------- Heat Dissipation 102 Coolant Potential 80 Energy Generation 21 Energy Capacity 325 Matter Stores 300 Matter Capacity 300 Sight Range 16 Terrain Scan Density 10 Armor Coverage 600 Propulsion Shielding 90 Utility Shielding 33 Weapon Shielding 15 Weapon Cycling 25 Evasion (%) 50 Targeting Accuracy 8 Core Analysis 8 Armor Integrity Analysis 40 Recoil Reduction 6 Matter Filtering 30 Kinecelleration 40 Salvage Targeting 1 Offensive Hacking 14 Defensive Hacking 10 Relay Coupler Types 1 Relay Coupler Value 50 Trap Extractor Capacity 6 Item Schematics ----------------- Arm. Wheel | -9/Materials | Scanalyzed Autogun | -9/Materials | Scanalyzed Exp. Cooling System | -8/Materials | Scanalyzed Arm. Huge Wheel | -8/Materials | Scanalyzed Adv. Weapon Cycler | -8/Materials | Scanalyzed Rnf. Antimatter Reactor | -8/Materials | Scanalyzed Hyp. Mass Driver | -7/Factory | Scanalyzed Centrium Heavy Armor Plating | -7/Factory | Scanalyzed Centrium Wheel | -6/Factory | Scanalyzed Robot Schematics ------------------ None Fabricated ------------ Hvy. Flak Cannon | x2 | -7/Factory | Preloaded M-28 Smith | x1 | -7/Factory | Preloaded Hyp. Mass Driver | x2 | -6/Factory Repaired ---------- Imp. Assault Rifle | 37% | -9/Materials Shield Generator | 43% | -9/Materials Imp. Assault Rifle | 76% | -9/Materials Imp. Ion Engine | 82% | -9/Materials Hvy. Assault Rifle | 86% | -9/Materials Alien Tech Used ----------------- None Achievements -------------- None Challenges ------------ None Game ------ Seed DisruptionGreatAnalyzer Manual? 0 Play Time 04:37:45 Cumulative 1089.5 hours Start 2025.07.20 @ 00:56:33 End 2025.07.20 @ 14:46:59 Sessions 3 Manual Loads 0 Difficulty Rogue Special Mode None Game No. 540 Rogue 540 Adventurer 0 Explorer 0 Win Type - Total 23 Types 10/4/3/0/1/1/2/2/0/0 Lore% 89 Gallery% 89 Achievement% 83 Wizard Run 0 Options --------- Layout 0 ASCII 0 Keyboard 0 Movement Numpad Keybinds 0 Fullscreen 2 Font 24/Smallcaps Map View 76x50 Zoom Use 0% Tactical HUD 1 Map Filters NONE Filters SHIFT_HUE(315) Steam 1 RUN: 4f2ef9c8-a894-47d0-a853-d0a5a0f0628b